bitfinex/quotes_ETHUSD_20250715
["timestamp","ask_amount","ask_price","bid_price","bid_amount"]
[1752546090904,20.19086391,2964.4,2964.3,0.002]
[1752546091277,16.8175,2964.4,2962.8,4.1580609]
[1752546091479,0.168,2963.4,2962.9,0.168]
[1752546091684,5.979,2963.3,2963.0,3.37495139]
[1752546091876,5.979,2963.3,2963.0,3.37495781]
[1752546092201,5.977,2963.2,2963.1,3.54274177]
[1752546092899,5.977,2963.2,2963.1,0.168]
[1752546093102,5.977,2963.2,2962.9,3.37498149]
[1752546093469,3.37507172,2962.9,2962.8,0.168]
[1752546093662,0.168,2962.8,2962.3,0.9634]
[1752546093903,0.168,2962.8,2962.6,3.37541348]
[1752546094105,5.967,2962.7,2962.5,0.168]
[1752546095087,3.37552742,2962.5,2961.7,0.7597]
[1752546095288,3.37575532,2962.3,2961.1,0.7597]
[1752546095587,0.1688,2962.1,2961.6,0.1688]
[1752546095788,5.967,2962.2,2961.7,0.79346439]
[1752546095993,5.967,2962.2,2962.0,3.54404334]
[1752546096187,5.967,2962.2,2962.0,0.168]
[1752546096715,5.967,2962.2,2962.0,3.5440227]
[1752546096877,5.967,2962.4,2962.0,3.5440398]
[1752546097079,5.967,2962.4,2962.3,3.37575532]
[1752546097280,8.095,2963.0,2962.7,3.37529955]
[1752546097606,4.58107897,2964.1,2963.4,3.37441506]
[1752546097607,0.8129,2964.0,2963.4,3.37441506]
[1752546097804,3.54207472,2963.8,2963.0,3.37484703]
[1752546098018,0.168,2963.8,2963.2,0.168]
[1752546098525,1.20735163,2964.1,2963.4,0.7954]
[1752546098709,5.967,2964.0,2963.4,0.7954]
[1752546098914,5.967,2964.0,2963.9,3.37393231]
[1752546099100,5.967,2964.0,2963.9,3.54193231]
[1752546099303,0.168,2964.5,2963.9,0.168]
[1752546099509,5.967,2964.4,2964.2,0.7954]
[1752546099915,9.34036497,2964.4,2964.2,0.168]
[1752546100098,6.9527,2964.4,2963.8,0.168]
[1752546100282,0.168,2964.4,2963.8,0.168]
[1752546100489,0.168,2964.4,2963.7,0.0337416]
[1752546100490,5.967,2964.3,2964.2,3.37359152]
[1752546100686,0.168,2964.9,2964.2,0.168]
[1752546100885,8.096,2965.0,2964.6,3.37312989]
[1752546101190,8.096,2965.0,2964.6,3.37311253]
[1752546101384,0.168,2965.5,2964.9,0.168]
[1752546101659,0.001,2965.6,2965.0,0.03372681]
[1752546101923,0.001,2965.6,2965.5,3.54011262]
[1752546102133,0.001,2965.6,2965.5,0.20172112]
[1752546102499,0.001,2965.6,2965.5,0.168]
[1752546102895,0.001,2965.6,2964.8,0.7772]
[1752546103195,5.966,2965.5,2965.1,0.168]
[1752546103396,3.37245379,2965.2,2965.1,0.168]
[1752546103728,3.37303055,2964.7,2964.3,0.7772]
[1752546103930,5.966,2964.6,2964.3,0.7772]
[1752546104228,3.37303055,2964.7,2964.3,0.7792]
[1752546104429,5.966,2964.5,2964.3,0.7792]
[1752546104787,5.966,2964.5,2964.3,0.002]
[1752546104991,5.966,2964.4,2964.3,0.002]
[1752546106360,0.001,2965.6,2964.5,0.7772]
[1752546106510,5.965,2965.5,2964.6,0.03373136]
[1752546106711,9.33713767,2965.5,2964.8,3.3728837]
[1752546107010,3.37236494,2965.3,2964.6,3.37313634]
[1752546107246,3.37246906,2965.2,2964.5,4.15041615]
[1752546107551,5.965,2965.1,2964.5,0.7772]
[1752546107750,5.965,2965.1,2964.5,4.15040764]
[1752546107914,3.37268128,2965.0,2964.5,0.7772]
[1752546108116,5.965,2965.1,2964.5,4.15042942]
[1752546108337,3.37276894,2965.0,2964.5,0.7772]
[1752546108536,9.33760628,2965.1,2964.5,0.7772]
[1752546108713,5.965,2965.1,2964.5,0.7772]
[1752546109049,0.001,2965.6,2964.6,3.4068677]
[1752546109221,5.964,2965.5,2965.0,3.37261227]
[1752546109422,3.37233866,2965.4,2964.7,3.79135541]
[1752546109768,9.33618664,2965.5,2964.8,3.3729085]
[1752546110053,3.37222634,2965.4,2964.5,0.7772]
[1752546110363,3.37234173,2965.3,2964.6,3.37306136]
[1752546110532,3.37246092,2965.2,2964.5,4.15041162]
[1752546110729,5.964,2965.1,2964.5,4.15041162]
[1752546110924,5.964,2965.2,2964.9,3.37272474]
[1752546111112,5.964,2965.2,2964.9,3.37279503]
[1752546111557,5.964,2965.2,2964.7,3.37291901]
[1752546111714,5.964,2965.2,2964.8,3.37290879]
[1752546112036,5.964,2965.2,2964.8,0.63911585]
[1752546112238,5.964,2965.2,2964.9,3.37278606]
[1752546112444,5.964,2965.2,2964.5,0.7772]
[1752546112646,5.963,2965.1,2964.8,3.37288819]
[1752546112959,5.963,2965.2,2965.0,3.37259998]
[1752546113110,0.001,2965.6,2965.4,3.37220005]
[1752546113310,0.001,2965.6,2965.5,4.15653374]
[1752546113646,0.001,2965.6,2965.5,4.32453374]
[1752546113811,0.001,2965.6,2965.5,0.9187]
[1752546114237,0.001,2965.6,2965.5,0.168]
[1752546114420,0.001,2965.6,2964.7,4.14202323]
[1752546114621,3.37216223,2965.5,2965.2,0.168]
[1752546114846,3.37224036,2965.4,2965.2,0.168]
[1752546115047,9.33434006,2965.3,2965.2,0.168]
[1752546115411,3.37299799,2964.8,2964.3,0.7792]
[1752546115630,5.961,2964.7,2964.6,0.168]
[1752546116027,9.33402256,2964.7,2964.6,0.168]
[1752546116257,3.37336391,2964.4,2964.3,0.002]
[1752546117185,3.37330366,2964.5,2964.3,0.002]
[1752546117331,3.37336391,2964.4,2964.3,0.002]
[1752546117532,9.33436391,2964.4,2964.3,0.002]
[1752546117779,0.168,2964.6,2964.3,0.002]
[1752546117992,5.961,2964.4,2964.3,0.002]
[1752546118430,10.0,2965.5,2964.3,0.002]
[1752546118431,0.7766,2965.6,2964.4,0.7954]
[1752546118630,6.128,2965.5,2964.7,3.3729392]
[1752546118852,6.128,2965.5,2965.1,0.168]
[1752546119054,5.96,2965.5,2965.3,0.168]
[1752546119256,0.001,2965.6,2965.3,0.168]
[1752546119671,5.96,2965.5,2965.3,0.0337234]
[1752546119842,5.96,2965.5,2965.2,3.40611491]
[1752546120043,5.96,2965.5,2965.4,3.54022634]
[1752546120344,0.001,2965.6,2965.5,3.37211262]
[1752546120750,0.001,2965.6,2965.5,4.88276764]
[1752546120950,0.001,2965.6,2965.5,0.7857]
[1752546121387,0.001,2965.6,2965.4,0.168]
[1752546121606,0.001,2965.6,2965.5,3.37211262]
[1752546121841,0.001,2965.6,2965.5,3.40583374]
[1752546122088,0.001,2965.6,2965.5,0.7708]
[1752546122461,0.001,2965.6,2965.4,0.168]
[1752546122670,3.3730085,2965.6,2965.4,0.168]
[1752546122988,3.37268128,2965.0,2964.9,0.168]
[1752546123177,5.958,2965.0,2964.9,0.168]
[1752546123962,0.001,2965.6,2964.9,0.168]
[1752546124179,0.001,2965.6,2964.4,0.03373363]
[1752546124180,5.958,2965.5,2965.2,0.168]
[1752546124352,3.37234006,2965.3,2964.4,3.37332016]
[1752546124559,0.168,2965.4,2964.8,0.168]
[1752546124800,3.37298413,2964.8,2964.5,0.168]
[1752546125099,3.37313634,2964.6,2964.5,0.168]
[1752546125313,3.37329929,2964.5,2964.3,0.002]
[1752546125448,3.37325823,2964.5,2964.3,0.002]
[1752546125655,3.37336391,2964.4,2964.3,0.002]
[1752546125856,5.957,2964.6,2964.3,0.002]
[1752546126096,3.37312129,2964.7,2964.3,0.002]
[1752546126395,5.957,2964.6,2964.3,0.002]
[1752546126798,5.956,2964.5,2964.3,0.002]
[1752546126964,5.956,2964.5,2964.3,3.37542893]
[1752546127297,5.957,2964.6,2964.4,3.54135999]
[1752546127650,5.957,2964.6,2964.4,0.168]
[1752546128081,5.956,2964.6,2964.4,0.168]
[1752546128592,9.32916328,2964.6,2964.4,0.168]
[1752546128793,5.956,2964.6,2964.4,0.168]
[1752546129002,0.168,2965.1,2964.4,0.52234228]
[1752546129169,0.169,2965.3,2964.7,3.3730147]
[1752546129375,5.956,2965.2,2965.0,0.168]
[1752546130398,3.37292025,2964.8,2964.4,0.168]
[1752546130698,5.955,2964.8,2964.7,3.37302256]
[1752546130895,5.955,2964.8,2964.7,3.54102256]
[1752546131194,0.001,2965.3,2964.7,0.168]
[1752546131374,0.001,2965.3,2965.2,3.37245379]
[1752546131569,0.001,2965.3,2965.2,3.57417832]
[1752546131768,0.001,2965.3,2965.2,4.36957832]
[1752546132583,0.001,2965.3,2965.2,4.91957832]
[1752546132781,0.001,2965.3,2965.2,4.88585379]
[1752546132981,0.001,2965.3,2965.2,5.16169541]
[1752546133223,0.001,2965.3,2965.2,4.36957832]
[1752546133512,0.001,2966.2,2966.1,3.37143049]
[1752546133666,0.001,2966.2,2966.1,4.14753049]
[1752546133866,0.001,2966.2,2966.1,5.27030696]
[1752546134266,0.001,2967.4,2966.7,3.37074864]
[1752546134500,0.001,2967.4,2966.7,4.16024864]
[1752546134699,0.001,2967.4,2966.7,4.19395612]
[1752546135663,0.001,2967.4,2966.7,4.16024864]
[1752546135867,0.001,2967.4,2966.7,5.28416281]
[1752546136102,5.951,2967.3,2966.7,5.83416281]
[1752546136267,5.951,2967.3,2966.7,5.80045533]
[1752546136663,5.952,2967.4,2966.7,15.83416281]
[1752546136869,0.001,2967.5,2967.4,0.55]
[1752546137114,0.001,2968.0,2967.9,3.36938576]
[1752546137274,0.001,2968.0,2967.9,14.71837961]
[1752546137608,0.001,2968.0,2967.9,14.68468576]
[1752546137811,1e-08,2968.0,2967.9,4.68468576]
[1752546137965,1e-08,2968.0,2967.9,4.71837961]
[1752546138163,1e-08,2968.0,2967.9,7.12216841]
[1752546138412,0.001,2968.6,2968.5,13.91870473]
[1752546138707,0.001,2968.6,2968.5,14.68210473]
[1752546140599,0.001,2968.6,2968.0,10.7711]
[1752546140782,0.001,2968.6,2968.5,3.36870473]
[1752546141118,0.001,2968.6,2968.5,14.72679177]
[1752546141335,1e-08,2968.6,2968.5,14.69310473]
[1752546142106,1e-08,2968.6,2968.5,22.11193971]
[1752546142307,1e-08,2968.6,2968.5,25.75010406]
[1752546142526,0.001,2969.6,2969.5,4.68237029]
[1752546142702,0.001,2969.6,2969.5,0.7984757]
[1752546142907,0.001,2969.6,2969.1,0.7648]
[1752546143103,0.001,2969.6,2969.3,3.36779059]
[1752546143306,0.001,2969.6,2969.5,3.36757029]
[1752546143635,0.001,2969.6,2969.5,0.168]
[1752546144316,0.001,2969.6,2969.5,3.53557029]
[1752546144521,0.001,2969.6,2969.5,0.168]
[1752546146090,0.001,2969.6,2969.5,3.56924599]
[1752546146329,0.001,2969.6,2969.5,5.02466479]
[1752546146628,0.001,2969.6,2969.5,4.88097029]
[1752546146830,0.001,2969.6,2969.5,14.91464599]
[1752546147028,0.001,2969.6,2969.5,14.88097029]
[1752546147235,0.001,2969.6,2969.5,4.33097029]
[1752546147446,0.001,2969.6,2969.5,0.9634]
[1752546147597,0.001,2969.6,2969.5,4.88097029]
[1752546147791,0.001,2969.6,2969.5,5.37635732]
[1752546148191,0.001,2969.6,2969.5,0.718]
[1752546148399,0.001,2969.6,2969.5,4.60736344]
[1752546148735,0.001,2969.6,2969.5,0.168]
[1752546148946,0.001,2969.6,2969.5,4.08557029]
[1752546149295,0.001,2969.6,2969.5,0.168]
[1752546149809,0.001,2969.6,2969.5,4.08557029]
[1752546150008,0.001,2969.6,2969.5,0.65606007]
[1752546150236,0.001,2969.6,2969.5,0.168]
[1752546150734,0.001,2969.6,2969.5,4.08557029]
[1752546150939,0.001,2969.6,2969.5,4.83426608]
[1752546151241,0.001,2969.6,2969.5,15.59426608]
[1752546151618,0.001,2969.6,2969.5,12.22669579]
[1752546151938,0.001,2969.6,2969.5,4.84557029]
[1752546152139,0.001,2969.6,2969.5,4.87924599]
[1752546152544,0.001,2969.6,2969.5,1.478]
[1752546152700,0.001,2969.6,2969.5,0.168]
[1752546152906,3.36845689,2969.6,2969.5,0.168]
[1752546153316,0.001,2969.6,2969.5,0.168]
[1752546153855,3.36845689,2969.6,2968.6,0.7954]
[1752546154002,3.36757965,2969.5,2969.4,0.168]
[1752546154406,3.36820954,2969.0,2968.2,3.36904521]
[1752546154642,3.36820954,2969.0,2968.4,10.0]
[1752546154821,3.36843133,2968.8,2968.2,3.36897802]
[1752546155019,3.36856301,2968.7,2968.5,0.168]
[1752546155354,5.932,2969.1,2968.5,0.168]
[1752546155568,3.36858831,2968.7,2968.5,0.168]
[1752546155851,5.932,2969.1,2968.5,0.168]
[1752546156011,9.29916167,2969.0,2968.5,0.168]
[1752546156211,13.36793342,2969.2,2968.8,0.168]
[1752546156436,3.36825086,2968.9,2968.8,0.168]
[1752546156605,3.36818178,2969.0,2968.8,0.168]
[1752546156805,9.29904508,2969.1,2968.8,0.168]
[1752546157046,0.9624,2969.4,2968.8,0.168]
[1752546157345,5.93,2969.5,2969.0,0.168]
[1752546157647,0.001,2969.6,2969.4,0.168]
[1752546157942,9.29757029,2969.5,2969.4,0.168]
[1752546158162,5.93,2969.5,2969.1,0.168]
[1752546158318,3.36791054,2969.2,2969.1,0.168]
[1752546158525,3.36791054,2969.2,2968.6,0.7954]
[1752546158526,3.36813845,2969.0,2968.4,3.36878737]
[1752546158726,3.36813845,2969.0,2968.9,0.168]
[1752546159443,3.36791054,2969.2,2968.9,0.168]
[1752546159444,3.36793978,2969.2,2968.9,0.168]
[1752546159658,10.9994,2969.4,2968.9,0.168]
[1752546159862,3.36860543,2968.6,2967.8,3.36941255]
[1752546160058,3.36860543,2968.6,2967.7,0.7787]
[1752546160361,3.36907377,2968.2,2967.9,0.168]
[1752546160562,3.36919132,2968.1,2967.9,0.168]
[1752546160760,0.168,2968.4,2967.9,0.168]
[1752546160971,5.928,2968.6,2968.3,3.3688494]
[1752546161114,21.44921961,2969.0,2968.3,3.3688494]
[1752546161115,8.081,2969.0,2968.4,3.40250639]
[1752546161315,8.081,2969.0,2968.8,0.168]
[1752546161316,5.927,2968.9,2968.8,0.168]
[1752546161740,5.927,2968.9,2968.8,3.53636432]
[1752546161946,5.927,2968.9,2968.8,0.168]
[1752546162147,8.081,2969.0,2968.9,3.36825086]
[1752546162345,0.169,2969.6,2968.9,0.69046198]
[1752546162547,9.29465595,2969.5,2968.9,3.36824456]
[1752546162769,5.927,2969.5,2969.4,0.168]
[1752546163468,9.29457029,2969.5,2969.4,0.168]
[1752546163838,5.927,2969.5,2969.1,0.168]
[1752546164050,3.36769653,2969.4,2969.1,0.168]
[1752546164253,0.169,2969.6,2969.1,0.168]
[1752546164456,5.926,2969.5,2968.5,0.55]
[1752546164626,5.925,2969.4,2969.3,0.168]
[1752546164827,3.36798431,2969.2,2968.6,3.36852387]
[1752546165162,3.36798946,2969.2,2969.1,0.168]
[1752546165362,0.30964386,2969.3,2969.1,0.168]
[1752546165552,3.36791054,2969.2,2969.1,0.168]
[1752546165719,3.36791054,2969.2,2968.1,0.7721]
[1752546165720,4.18131054,2969.2,2968.1,0.7721]
[1752546165925,3.36860134,2968.6,2967.9,3.36934092]
[1752546166125,3.36860134,2968.6,2968.5,0.168]
[1752546166326,6.7095,2968.6,2967.6,3.36965475]
[1752546166526,3.36915872,2968.1,2968.0,0.168]
[1752546166764,9.29315872,2968.1,2968.0,0.168]
[1752546166938,3.36938576,2967.9,2967.8,0.168]
[1752546167469,3.36932426,2968.0,2967.8,0.168]
[1752546167772,3.36938576,2967.9,2967.8,0.168]
[1752546167927,3.36961283,2967.7,2967.6,0.002]
[1752546168128,9.29261283,2967.7,2967.6,0.002]
[1752546168331,19.60299152,2967.7,2967.6,0.002]
[1752546168562,19.60296918,2967.7,2967.6,0.002]
[1752546168968,13.67996918,2967.7,2967.6,0.002]
[1752546169168,19.77096918,2967.7,2967.6,0.002]
[1752546169463,9.29161283,2967.7,2967.6,0.002]
[1752546170580,13.67947252,2967.7,2967.6,0.002]
[1752546170861,19.45861283,2967.7,2967.6,0.002]
[1752546171227,3.53761283,2967.7,2967.6,0.002]
[1752546171428,6.089,2967.7,2967.6,0.002]
[1752546171840,9.45861283,2967.7,2967.6,0.002]
[1752546172266,19.45861283,2967.7,2967.6,0.002]
[1752546173361,3.37070628,2966.8,2965.8,0.7954]
[1752546173542,5.92,2966.7,2966.5,0.168]
[1752546173743,9.29086226,2966.6,2966.5,0.168]
[1752546173947,3.37120318,2966.3,2965.3,4.13514899]
[1752546174133,5.92,2966.2,2965.9,0.168]
[1752546174330,5.92,2966.1,2965.9,0.168]
[1752546174575,3.3713205,2966.2,2965.9,0.168]
[1752546174872,0.168,2966.5,2965.9,0.168]
[1752546175074,5.919,2966.4,2966.1,3.5394295]
[1752546175259,0.7613,2966.8,2966.1,1.12021449]
[1752546175458,5.919,2966.7,2966.3,0.168]
[1752546175959,5.919,2966.7,2966.3,3.53919405]
[1752546176175,5.919,2966.7,2966.3,0.168]
[1752546176487,5.919,2966.7,2966.4,3.37100686]
[1752546176634,5.919,2966.7,2966.4,3.37107079]
[1752546176977,0.7613,2966.8,2966.6,3.37086226]
[1752546177137,5.919,2966.7,2966.6,3.37086226]
[1752546177670,5.919,2966.7,2966.5,3.37093687]
[1752546177872,5.919,2966.7,2966.6,3.37086226]
[1752546178036,0.168,2967.0,2966.4,3.37108953]
[1752546178382,5.917,2966.9,2966.6,0.33708623]
[1752546178683,5.917,2966.9,2966.2,0.03371316]
[1752546178973,5.917,2966.8,2966.7,3.37074864]
[1752546179152,5.917,2966.8,2966.7,4.04490958]
[1752546179347,8.083,2967.3,2967.1,3.37018944]
[1752546179577,5.916,2967.2,2967.1,3.37029422]
[1752546179751,5.916,2967.2,2967.0,3.37036219]
[1752546179949,5.916,2967.2,2966.8,3.37063502]
[1752546180293,5.916,2967.2,2967.0,3.37030543]
[1752546180603,8.083,2967.3,2966.5,3.37093839]
[1752546180734,7.6127967,2970.5,2966.6,1.36800862]
[1752546180735,5.915,2967.2,2966.6,1.36800862]
[1752546180936,8.8777,2968.3,2967.7,3.36959906]
[1752546181137,5.915,2968.2,2966.8,10.0]
[1752546181411,4.12049869,2967.9,2966.9,1.531]
[1752546181705,8.837,2968.3,2967.9,3.3692854]
[1752546181838,5.915,2968.2,2967.5,0.7557]
[1752546182037,5.915,2968.2,2968.1,3.36915872]
[1752546182795,3.36825996,2968.9,2967.6,3.91972637]
[1752546182937,5.914,2968.8,2967.9,3.36938576]
[1752546183138,3.36854833,2968.7,2968.1,3.36909507]
[1752546183378,9.28242768,2968.8,2968.2,3.36899202]
[1752546183562,10.0,2968.7,2968.0,3.36918738]
[1752546183759,10.0,2968.7,2967.5,0.7557]
[1752546184064,10.0,2968.7,2967.5,3.36979043]
[1752546184065,3.36911549,2968.2,2967.5,3.36979043]
[1752546184263,3.36950232,2967.8,2967.3,10.0]
[1752546184487,5.912,2967.7,2967.0,0.7611]
[1752546184685,5.912,2967.6,2967.0,3.37030119]
[1752546184867,9.2817396,2967.6,2967.1,0.33703012]
[1752546185072,5.912,2967.6,2967.1,0.33703012]
[1752546185270,3.37015186,2967.3,2966.6,3.92079778]
[1752546185478,0.8295,2967.7,2966.6,0.55]
[1752546185688,5.91,2967.7,2967.2,0.781]
[1752546185902,5.91,2967.7,2967.6,3.36972637]
[1752546186066,5.91,2967.7,2967.6,4.59368306]
[1752546186272,5.91,2967.7,2967.6,4.04368306]
[1752546186483,5.91,2967.7,2967.2,0.781]
[1752546186681,5.91,2967.7,2966.8,0.781]
[1752546186888,9.27969754,2967.7,2967.1,3.37028173]
[1752546187302,3.36972735,2967.6,2967.0,13.37036029]
[1752546187483,5.91,2967.7,2967.0,1.75218817]
[1752546187809,3.36979647,2967.6,2967.0,3.370392]
[1752546188000,5.91,2967.7,2966.8,0.781]
[1752546188232,3.53772637,2967.6,2967.1,0.168]
[1752546188365,0.168,2967.6,2967.1,0.168]
[1752546188569,3.36983993,2967.5,2967.1,0.168]
[1752546188770,0.168,2967.6,2967.1,0.168]
[1752546188983,5.908,2967.5,2967.4,0.168]
[1752546190208,0.7703,2967.8,2967.4,0.168]
[1752546190380,5.907,2967.7,2967.4,0.168]
[1752546190586,5.906,2967.6,2967.4,0.168]
[1752546190985,0.168,2967.9,2967.4,0.168]
[1752546190986,9.27583993,2967.5,2967.4,0.168]
[1752546191789,0.803,2967.4,2966.8,0.002]
[1752546192006,4.1729576,2967.4,2967.1,0.168]
[1752546192202,3.37052141,2966.9,2966.8,0.002]
[1752546192388,5.905,2966.9,2966.8,0.002]
[1752546192590,9.27552141,2966.9,2966.8,0.002]
[1752546193487,5.905,2966.9,2966.8,0.002]
[1752546193810,9.27452141,2966.9,2966.8,0.002]
[1752546194699,10.05032141,2966.9,2966.8,0.002]
[1752546195226,20.05032141,2966.9,2966.8,0.002]
[1752546195425,20.04932141,2966.9,2966.8,0.002]
[1752546197856,3.37147612,2966.1,2965.6,0.002]
[1752546198014,3.37165784,2965.9,2965.8,0.168]
[1752546198645,5.9,2966.0,2965.8,0.168]
[1752546198831,3.37165784,2965.9,2965.8,0.168]
[1752546199351,6.6602,2966.0,2965.6,0.002]
[1752546199509,3.37188522,2965.7,2965.6,0.002]
[1752546199857,9.27088522,2965.7,2965.6,0.002]
[1752546201728,3.37188522,2965.7,2965.6,0.002]
[1752546201914,9.26888522,2965.7,2965.6,0.002]
[1752546203327,19.26888522,2965.7,2965.6,0.002]
[1752546204112,20.04368522,2965.7,2965.6,1e-08]
[1752546205131,4.14668522,2965.7,2965.6,1e-08]
[1752546205316,5.896,2965.7,2965.6,1e-08]
[1752546205948,9.26788522,2965.7,2965.6,1e-08]
[1752546206150,19.26788522,2965.7,2965.6,1e-08]
[1752546206334,13.37188522,2965.7,2965.6,1e-08]
[1752546206536,9.26688522,2965.7,2965.6,1e-08]
[1752546207080,19.26688522,2965.7,2965.6,1e-08]
[1752546207429,20.59168522,2965.7,2965.6,1e-08]
[1752546207740,3.37336391,2964.4,2964.3,0.002]
[1752546207958,9.26736391,2964.4,2964.3,0.002]
[1752546208450,3.37359152,2964.2,2963.1,0.002]
[1752546208629,5.893,2964.1,2963.1,0.002]
[1752546208824,3.37473002,2963.2,2963.1,0.002]
[1752546209051,19.26773002,2963.2,2963.1,0.002]
[1752546210276,5.892,2963.2,2963.1,0.002]
[1752546210429,9.26673002,2963.2,2963.1,0.002]
[1752546210628,10.04153002,2963.2,2963.1,0.002]
[1752546210825,0.7748,2963.2,2963.1,0.002]
[1752546211159,6.061,2963.2,2963.1,0.002]
[1752546211356,9.43573002,2963.2,2963.1,0.002]
[1752546212770,9.43473002,2963.2,2963.1,0.002]
[1752546213190,28.178365,2963.2,2963.1,1e-08]
[1752546213351,4.1511252,2961.8,2960.2,0.7954]
[1752546213534,4.1511252,2961.8,2958.9,0.7954]
[1752546213535,3.37666585,2961.6,2960.9,0.7954]
[1752546213887,5.89,2961.5,2960.9,4.17268747]
[1752546214178,8.094,2961.9,2960.9,1.44240429]
[1752546214179,5.891,2961.4,2960.9,1.44240429]
[1752546214349,8.094,2961.9,2961.0,3.41100113]
[1752546214350,5.891,2961.3,2961.0,3.41100113]
[1752546214561,5.891,2961.2,2961.1,3.37712336]
[1752546214771,5.891,2961.2,2960.9,4.81973922]
[1752546214772,5.891,2961.2,2960.9,1.44240429]
[1752546214981,5.891,2961.2,2960.7,3.3774827]
[1752546215181,5.89,2961.1,2961.0,4.16153741]
[1752546215481,8.094,2961.9,2961.0,4.16148082]
[1752546215630,5.89,2961.8,2961.0,0.7843]
[1752546216269,8.094,2961.9,2961.8,3.3763252]
[1752546216534,13.985,2961.9,2961.8,3.3763252]
[1752546216756,8.094,2961.9,2961.8,4.47025772]
[1752546217083,0.83,2963.1,2963.0,3.37495781]
[1752546217281,5.89,2963.1,2962.7,3.37525625]
[1752546217453,5.89,2963.1,2962.7,3.37526492]
[1752546217635,0.83,2963.0,2962.4,3.37553581]
[1752546217841,0.83,2963.0,2961.9,0.55]
[1752546218190,0.83,2963.0,2962.5,3.37546196]
[1752546218363,5.889,2962.9,2961.9,0.55]
[1752546218732,5.889,2962.9,2961.9,10.0]
[1752546218947,5.889,2962.9,2962.0,2.4470188]
[1752546219146,3.37549023,2962.6,2961.8,0.7563]
[1752546219346,0.83,2963.0,2961.8,0.7563]
[1752546219347,0.83,2963.0,2962.7,3.37528807]
[1752546219552,3.37470143,2963.3,2962.6,3.37534267]
[1752546219753,5.888,2963.2,2962.2,10.0]
[1752546219962,5.888,2963.2,2962.5,0.7643]
[1752546220164,0.8202,2963.6,2962.5,0.7643]
[1752546220475,8.096,2963.7,2962.8,0.7753]
[1752546220683,5.887,2963.7,2963.1,10.55]
[1752546220982,5.887,2963.7,2963.6,4.14957453]
[1752546221278,8.097,2964.9,2963.6,0.7753]
[1752546221490,5.886,2964.7,2964.0,3.37380646]
[1752546221839,9.2590664,2964.7,2963.6,0.7753]
[1752546222041,3.37321776,2964.6,2963.8,3.37404683]
[1752546222281,9.25905803,2964.7,2963.7,0.4149657]
[1752546222495,3.37315825,2964.6,2964.0,3.37375577]
[1752546222836,5.885,2964.5,2963.7,0.4149657]
[1752546223039,5.885,2964.5,2963.6,0.7753]
[1752546223281,5.885,2964.5,2964.0,3.37381446]
[1752546223585,3.37293964,2964.8,2963.6,0.7753]
[1752546223586,0.168,2964.8,2964.3,3.37340666]
[1752546223890,8.097,2964.9,2964.2,0.168]
[1752546223891,9.42503644,2964.7,2964.2,0.168]
[1752546224077,6.052,2964.7,2964.2,0.168]
[1752546224273,9.42502483,2964.7,2964.2,0.168]
[1752546224594,6.052,2964.7,2964.2,0.168]
[1752546224740,0.7667,2964.3,2963.6,0.7753]
[1752546224946,9.25659152,2964.2,2963.9,0.168]
[1752546225254,5.883,2964.2,2963.9,0.168]
[1752546225996,9.25661333,2964.2,2963.9,0.168]
[1752546226142,3.37381916,2964.0,2963.9,0.168]
[1752546226340,3.37381916,2964.0,2963.2,0.772]
[1752546226693,3.37416067,2963.7,2963.6,0.168]
[1752546226894,3.37439619,2963.5,2963.4,0.168]
[1752546227054,3.37450226,2963.4,2963.2,0.168]
[1752546227402,3.37461613,2963.3,2963.2,0.168]
[1752546227549,3.37461613,2963.3,2962.9,0.168]
[1752546227550,3.37471777,2963.3,2962.9,0.168]
[1752546227768,5.88,2963.2,2962.9,0.168]
[1752546228097,9.25475205,2963.2,2962.9,0.168]
[1752546228255,5.88,2963.2,2962.9,0.168]
[1752546229284,9.2547393,2963.2,2962.9,0.168]
[1752546229481,3.37495781,2963.0,2962.9,0.168]
[1752546229882,6.048,2963.2,2962.7,0.168]
[1752546230213,3.37544735,2962.6,2962.2,0.7817]
[1752546230396,5.878,2962.5,2962.4,0.168]
[1752546230717,5.878,2962.5,2961.9,0.7954]
[1752546230718,3.37575911,2962.3,2961.9,0.7954]
[1752546230897,0.9215,2962.8,2962.3,0.168]
[1752546231210,3.37588845,2962.2,2962.0,0.1688]
[1752546231414,5.877,2962.1,2962.0,0.1688]
[1752546232213,10.0,2963.1,2962.0,3.54482381]
[1752546232365,3.37548678,2962.6,2962.1,3.37597095]
[1752546232563,9.41933426,2962.7,2962.2,0.168]
[1752546232764,3.37553978,2962.5,2962.2,0.168]
[1752546232963,5.876,2962.4,2962.2,3.37584582]
[1752546233192,5.876,2962.4,2962.3,3.54375532]
[1752546233431,3.37511629,2962.9,2962.3,3.54375097]
[1752546233720,5.875,2962.8,2962.3,3.54375097]
[1752546233919,5.875,2962.8,2962.3,0.168]
[1752546234113,3.37529955,2962.7,2962.3,0.168]
[1752546234416,3.37535085,2962.7,2962.3,0.168]
[1752546235220,0.818,2962.7,2961.9,10.0]
[1752546235511,3.37562267,2962.5,2962.1,0.168]
[1752546235662,9.24965161,2962.4,2962.1,0.168]